fUSD/lending_fUSD_20250623
["ID","MTS","AMOUNT","RATE_DAILY","PERIOD"]
[367256054,1750720245818,-490.0,0.00021917,2]
[367256055,1750720245827,-490.0,0.00021917,2]
[367256056,1750720245836,-492.87035157,0.00021917,2]
[367256057,1750720245845,-490.0,0.00021917,2]
[367256058,1750720245854,-490.0,0.00021917,2]
[367256059,1750720245864,-490.0,0.00021917,2]
[367256060,1750720245874,-538.01,0.00021917,2]
[367256061,1750720245884,-492.06984786,0.00021917,2]
[367256062,1750720245893,-693.79,0.00021917,2]
[367256063,1750720245903,-490.0,0.00021917,2]
[367256064,1750720245912,-490.0,0.00021917,2]
[367256065,1750720245921,-490.0,0.00021917,2]
[367256066,1750720245933,-490.0,0.00021917,2]
[367256067,1750720245944,-490.0,0.00021917,2]
[367256068,1750720245954,-490.0,0.00021917,2]
[367256069,1750720245964,-490.0,0.00021917,2]
[367256070,1750720245973,-793.15,0.00021917,2]
[367256071,1750720245983,-490.0,0.00021917,2]
[367256072,1750720245992,-608.3,0.00021917,2]
[367256073,1750720246001,-490.0,0.00021917,2]
[367256074,1750720246010,-250.0,0.00021917,2]
[367256075,1750720246022,-610.99,0.00021917,2]
[367256076,1750720246032,-490.0,0.00021917,2]
[367256077,1750720246041,-490.0,0.00021917,2]
[367256078,1750720246050,-490.0,0.00021917,2]
[367256079,1750720246060,-698.55,0.00021917,2]
[367256080,1750720246069,-500.02,0.00021917,2]
[367256081,1750720246078,-490.0,0.00021917,2]
[367256082,1750720246087,-812.47,0.00021917,2]
[367256083,1750720246097,-917.55,0.00021917,2]
[367256084,1750720246106,-490.0,0.00021917,2]
[367256086,1750720246336,-490.0,0.00021917,2]
[367256087,1750720246346,-490.0,0.00021917,2]
[367256088,1750720246355,-490.0,0.00021917,2]
[367256089,1750720246365,-637.003955,0.00021917,2]
[367256090,1750720246376,-490.0,0.00021917,2]
[367256091,1750720246388,-490.0,0.00021917,2]
[367256092,1750720246398,-490.0,0.00021917,2]
[367256093,1750720246408,-490.0,0.00021917,2]
[367256094,1750720246417,-759.24,0.00021917,2]
[367256095,1750720246427,-490.0,0.00021917,2]
[367256096,1750720246436,-545.58,0.00021917,2]
[367256097,1750720246446,-490.0,0.00021917,2]
[367256098,1750720246456,-840.98,0.00021917,2]
[367256099,1750720246466,-490.0,0.00021917,2]
[367256100,1750720246476,-490.0,0.00021917,2]
[367256101,1750720246485,-490.0,0.00021917,2]
[367256102,1750720246496,-151.0,0.00021917,2]
[367256103,1750720246505,-490.0,0.00021917,2]
[367256104,1750720246515,-1083.75,0.00021917,2]
[367256105,1750720246524,-490.0,0.00021917,2]
[367256106,1750720246534,-490.0,0.00021917,2]
[367256107,1750720246544,-676.91,0.00021917,2]
[367256108,1750720246553,-490.0,0.00021917,2]
[367256109,1750720246563,-490.0,0.00021917,2]
[367256110,1750720246573,-490.0,0.00021917,2]
[367256111,1750720246582,-490.0,0.00021917,2]
[367256112,1750720246592,-827.47,0.00021917,2]
[367256113,1750720246601,-490.0,0.00021917,2]
[367256114,1750720246611,-554.99,0.00021917,2]
[367256115,1750720246621,-628.72,0.00021917,2]
[367256116,1750720246632,-490.0,0.00021917,2]
[367256117,1750720246642,-157.449378,0.00021917,2]
[367256118,1750720246652,-490.0,0.00021917,2]
[367256119,1750720246661,-490.0,0.00021917,2]
[367256120,1750720246671,-490.0,0.00021917,2]
[367256121,1750720246681,-1200.9,0.00021917,2]
[367256122,1750720246691,-490.0,0.00021917,2]
[367256123,1750720246701,-258.37186659,0.00021917,2]
[367256124,1750720246712,-490.0,0.00021917,2]
[367256125,1750720246722,-151.0,0.00021917,2]
[367256126,1750720246732,-574.5,0.00021917,2]
[367256127,1750720246741,-255.82167803,0.00021917,2]
[367256128,1750720246751,-490.0,0.00021917,2]
[367256129,1750720246761,-490.0,0.00021917,2]
[367256130,1750720246771,-622.34,0.00021917,2]
[367256131,1750720246780,-197.5368574,0.00021917,2]
[367256132,1750720246790,-152.394999,0.00021917,2]
[367256133,1750720246800,-516.92341771,0.00021917,2]
[367256134,1750720246809,-151.0,0.00021917,2]
[367256135,1750720246819,-490.0,0.00021917,2]
[367256136,1750720246828,-490.0,0.00021917,2]
[367256137,1750720246839,-500.0,0.00021917,2]
[367256138,1750720246848,-444.96710102,0.00021917,2]
[367256139,1750720246858,-490.0,0.00021917,2]
[367256140,1750720246867,-490.0,0.00021917,2]
[367256141,1750720246879,-538.21,0.00021917,2]
[367256142,1750720246888,-490.0,0.00021917,2]
[367256143,1750720246898,-341.89701269,0.00021917,2]
[367256144,1750720246908,-971.79,0.00021917,2]
[367256145,1750720246917,-490.0,0.00021917,2]
[367256146,1750720246929,-1028.56,0.00021917,2]
[367256147,1750720246944,-490.0,0.00021917,2]
[367256148,1750720246953,-490.0,0.00021917,2]
[367256149,1750720246963,-490.0,0.00021917,2]
[367256150,1750720246973,-490.0,0.00021917,2]
[367256151,1750720246983,-490.0,0.00021917,2]
[367256152,1750720246992,-462.31730721,0.00021917,2]
[367256153,1750720247002,-490.0,0.00021917,2]
[367256154,1750720247012,-545.47,0.00021917,2]
[367256155,1750720247022,-490.0,0.00021917,2]
[367256156,1750720247032,-1263.38,0.00021917,2]
[367256157,1750720247042,-505.37,0.00021917,2]
[367256158,1750720247051,-610.98,0.00021917,2]
[367256159,1750720247060,-490.0,0.00021917,2]
[367256160,1750720247070,-299.03738825,0.00021917,2]
[367256161,1750720247081,-688.47,0.00021917,2]
[367256162,1750720247090,-816.17,0.00021917,2]
[367256163,1750720247100,-490.0,0.00021917,2]
[367256164,1750720247109,-490.0,0.00021917,2]
[367256165,1750720247118,-490.0,0.00021917,2]
[367256166,1750720247128,-511.19,0.00021917,2]
[367256167,1750720247138,-490.0,0.00021917,2]
[367256168,1750720247147,-490.0,0.00021917,2]
[367256169,1750720247157,-490.0,0.00021917,2]
[367256170,1750720247166,-756.92,0.00021917,2]
[367256171,1750720247175,-490.0,0.00021917,2]
[367256172,1750720247184,-409.97704196,0.00021917,2]
[367256173,1750720247194,-1422.61,0.00021917,2]
[367256174,1750720247203,-500.0,0.00021917,2]
[367256175,1750720247213,-500.0,0.00021917,2]
[367256176,1750720247222,-500.0,0.00021917,2]
[367256177,1750720247233,-500.0,0.00021917,2]
[367256178,1750720247242,-500.0,0.00021917,2]
[367256179,1750720247252,-500.0,0.00021917,2]
[367256180,1750720247262,-394.92148722,0.00021917,2]
[367256181,1750720247271,-490.0,0.00021917,2]
[367256182,1750720247280,-712.06,0.00021917,2]
[367256183,1750720247290,-544.78,0.00021917,2]
[367256184,1750720247301,-490.0,0.00021917,2]
[367256185,1750720247311,-490.0,0.00021917,2]
[367256186,1750720247320,-797.95,0.00021917,2]
[367256187,1750720247331,-495.24850517,0.00021917,2]
[367256188,1750720247341,-798.42,0.00021917,2]
[367256189,1750720247351,-490.0,0.00021917,2]
[367256190,1750720247361,-490.0,0.00021917,2]
[367256191,1750720247370,-490.0,0.00021917,2]
[367256192,1750720247380,-490.0,0.00021917,2]
[367256193,1750720247389,-490.0,0.00021917,2]
[367256194,1750720247399,-490.0,0.00021917,2]
[367256195,1750720247410,-948.64,0.00021917,2]
[367256196,1750720247420,-723.12,0.00021917,2]
[367256197,1750720247430,-490.0,0.00021917,2]
[367256198,1750720247440,-490.0,0.00021917,2]
[367256199,1750720247450,-490.0,0.00021917,2]
[367256200,1750720247460,-500.0,0.00021917,2]
[367256201,1750720247469,-500.0,0.00021917,2]
[367256202,1750720247478,-490.0,0.00021917,2]
[367256203,1750720247487,-500.0,0.00021917,2]
[367256204,1750720247497,-500.0,0.00021917,2]
[367256205,1750720247506,-490.0,0.00021917,2]
[367256206,1750720247515,-500.0,0.00021917,2]
[367256207,1750720247524,-500.0,0.00021917,2]
[367256208,1750720247534,-490.0,0.00021917,2]
[367256209,1750720247543,-151.0,0.00021917,2]
[367256210,1750720247552,-151.0,0.00021917,2]
[367256211,1750720247561,-490.0,0.00021917,2]
[367256212,1750720247570,-291.89298,0.00021917,2]
[367256213,1750720247580,-490.0,0.00021917,2]
[367256214,1750720247589,-490.0,0.00021917,2]
[367256215,1750720247599,-490.0,0.00021917,2]
[367256216,1750720247607,-460.64345283,0.00021917,2]
[367256217,1750720247617,-490.0,0.00021917,2]
[367256218,1750720247626,-490.0,0.00021917,2]
[367256219,1750720247636,-547.15,0.00021917,2]
[367256220,1750720247645,-490.0,0.00021917,2]
[367256221,1750720247655,-151.0,0.00021917,2]
[367256222,1750720247664,-490.0,0.00021917,2]
[367256223,1750720247674,-490.0,0.00021917,2]
[367256224,1750720247683,-490.0,0.00021917,2]
[367256225,1750720247692,-664.8,0.00021917,2]
[367256226,1750720247702,-490.0,0.00021917,2]
[367256227,1750720247711,-490.0,0.00021917,2]
[367256228,1750720247720,-490.0,0.00021917,2]
[367256229,1750720247730,-358.93409148,0.00021917,2]
[367256230,1750720247739,-490.0,0.00021917,2]
[367256231,1750720247748,-490.0,0.00021917,2]
[367256232,1750720247758,-494.01,0.00021917,2]
[367256233,1750720247767,-490.0,0.00021917,2]
[367256234,1750720247777,-765.15,0.00021917,2]
[367256235,1750720247787,-498.85,0.00021917,2]
[367256236,1750720247796,-490.0,0.00021917,2]
[367256237,1750720247806,-490.0,0.00021917,2]
[367256238,1750720247816,-490.0,0.00021917,2]
[367256239,1750720247826,-490.0,0.00021917,2]
[367256240,1750720247835,-490.0,0.00021917,2]
[367256241,1750720247845,-490.0,0.00021917,2]
[367256242,1750720247855,-490.0,0.00021917,2]
[367256243,1750720247865,-490.0,0.00021917,2]
[367256244,1750720247875,-490.0,0.00021917,2]
[367256245,1750720247888,-453.499335,0.00021917,2]
[367256246,1750720247898,-603.64,0.00021917,2]
[367256247,1750720247908,-490.0,0.00021917,2]
[367256248,1750720247918,-490.0,0.00021917,2]
[367256249,1750720247928,-1024.07,0.00021917,2]
[367256250,1750720247942,-490.0,0.00021917,2]
[367256251,1750720247952,-269.9571799,0.00021917,2]
[367256252,1750720247961,-1147.26,0.00021917,2]
[367256253,1750720247971,-490.0,0.00021917,2]
[367256254,1750720247981,-490.0,0.00021917,2]
[367256255,1750720247991,-490.0,0.00021917,2]
[367256256,1750720248000,-490.0,0.00021917,2]
[367256257,1750720248009,-490.0,0.00021917,2]
[367256258,1750720248019,-1174.91,0.00021917,2]
[367256259,1750720248028,-1295.03,0.00021917,2]
[367256260,1750720248038,-490.0,0.00021917,2]
[367256261,1750720248048,-490.0,0.00021917,2]
[367256262,1750720248057,-490.0,0.00021917,2]
[367256263,1750720248067,-490.0,0.00021917,2]
[367256264,1750720248076,-490.0,0.00021917,2]
[367256265,1750720248085,-490.0,0.00021917,2]
[367256266,1750720248095,-490.0,0.00021917,2]
[367256267,1750720248105,-490.0,0.00021917,2]
[367256268,1750720248114,-490.0,0.00021917,2]
[367256269,1750720248123,-1105.76,0.00021917,2]
[367256270,1750720248133,-490.0,0.00021917,2]
[367256271,1750720248142,-490.0,0.00021917,2]
[367256272,1750720248152,-850.78,0.00021917,2]
[367256273,1750720248161,-490.0,0.00021917,2]
[367256274,1750720248171,-490.0,0.00021917,2]
[367256275,1750720248180,-490.0,0.00021917,2]
[367256276,1750720248189,-490.0,0.00021917,2]
[367256277,1750720248199,-490.0,0.00021917,2]
[367256278,1750720248208,-490.0,0.00021917,2]
[367256279,1750720248218,-490.0,0.00021917,2]
[367256280,1750720248227,-490.0,0.00021917,2]
[367256281,1750720248236,-490.0,0.00021917,2]
[367256282,1750720248246,-490.0,0.00021917,2]
[367256283,1750720248255,-490.0,0.00021917,2]
[367256284,1750720248264,-151.0,0.00021917,2]
[367256285,1750720248273,-490.0,0.00021917,2]
[367256286,1750720248282,-602.16,0.00021917,2]
[367256287,1750720248291,-153.066625,0.00021917,2]
[367256288,1750720248301,-490.0,0.00021917,2]
[367256289,1750720248311,-490.0,0.00021917,2]
[367256290,1750720248320,-490.0,0.00021917,2]
[367256291,1750720248329,-490.0,0.00021917,2]
[367256292,1750720248338,-670.97,0.00021917,2]
[367256293,1750720248348,-1125.48,0.00021917,2]
[367256294,1750720248357,-490.0,0.00021917,2]
[367256295,1750720248366,-490.0,0.00021917,2]
[367256296,1750720248375,-1015.98,0.00021917,2]
[367256297,1750720248386,-490.0,0.00021917,2]
[367256298,1750720248396,-490.0,0.00021917,2]
[367256299,1750720248406,-896.78,0.00021917,2]
[367256300,1750720248415,-490.0,0.00021917,2]
[367256301,1750720248424,-490.0,0.00021917,2]
[367256302,1750720248434,-490.0,0.00021917,2]
[367256303,1750720248443,-490.0,0.00021917,2]
[367256304,1750720248452,-991.79,0.00021917,2]
[367256305,1750720248462,-152.085134,0.00021917,2]
[367256306,1750720248471,-490.0,0.00021917,2]
[367256307,1750720248480,-490.0,0.00021917,2]
[367256308,1750720248490,-617.71,0.00021917,2]
[367256309,1750720248499,-490.0,0.00021917,2]
[367256310,1750720248509,-490.0,0.00021917,2]
[367256311,1750720248518,-663.55,0.00021917,2]
[367256312,1750720248528,-490.0,0.00021917,2]
[367256313,1750720248537,-500.0,0.00021917,2]
[367256314,1750720248546,-490.0,0.00021917,2]
[367256315,1750720248555,-753.16,0.00021917,2]
[367256316,1750720248565,-499.22674662,0.00021917,2]
[367256317,1750720248574,-1169.56,0.00021917,2]
[367256318,1750720248584,-499.35923095,0.00021917,2]
[367256319,1750720248594,-490.0,0.00021917,2]
[367256320,1750720248603,-490.0,0.00021917,2]
[367256321,1750720248612,-490.0,0.00021917,2]
[367256322,1750720248621,-496.84667518,0.00021917,2]
[367256323,1750720248633,-490.0,0.00021917,2]
[367256324,1750720248642,-490.0,0.00021917,2]
[367256325,1750720248651,-798.85,0.00021917,2]
[367256326,1750720248661,-490.0,0.00021917,2]
[367256327,1750720248743,-816.02,0.00021917,2]
[367256328,1750720248752,-490.0,0.00021917,2]
[367256329,1750720248761,-1226.43,0.00021917,2]
[367256330,1750720248771,-490.0,0.00021917,2]
[367256331,1750720248780,-1692.03,0.00021917,2]
[367256332,1750720248789,-490.0,0.00021917,2]
[367256333,1750720248798,-488.38495596,0.00021917,2]
[367256334,1750720248808,-743.41,0.00021917,2]
[367256335,1750720248817,-490.0,0.00021917,2]
[367256336,1750720248826,-490.0,0.00021917,2]
[367256337,1750720248835,-490.0,0.00021917,2]
[367256338,1750720248844,-500.0,0.00021917,2]
[367256339,1750720248853,-490.0,0.00021917,2]
[367256340,1750720248863,-1035.5,0.00021917,2]
[367256341,1750720248872,-1428.24,0.00021917,2]
[367256342,1750720248882,-490.0,0.00021917,2]
[367256343,1750720248892,-578.07,0.00021917,2]
[367256344,1750720248901,-490.0,0.00021917,2]
[367256345,1750720248910,-490.0,0.00021917,2]
[367256346,1750720248920,-490.0,0.00021917,2]
[367256347,1750720248931,-490.0,0.00021917,2]
[367256348,1750720248941,-500.0,0.00021917,2]
[367256349,1750720248950,-500.0,0.00021917,2]
[367256350,1750720248960,-230.84,0.00021917,2]
[367256351,1750720248969,-1560.27,0.00021917,2]
[367256352,1750720248979,-490.0,0.00021917,2]
[367256353,1750720248988,-490.0,0.00021917,2]
[367256354,1750720248998,-490.0,0.00021917,2]
[367256355,1750720249008,-490.0,0.00021917,2]
[367256356,1750720249019,-1138.31,0.00021917,2]
[367256357,1750720249028,-490.0,0.00021917,2]
[367256358,1750720249038,-490.0,0.00021917,2]
[367256359,1750720249047,-490.0,0.00021917,2]
[367256360,1750720249056,-490.0,0.00021917,2]
[367256361,1750720249066,-490.0,0.00021917,2]
[367256362,1750720249075,-490.0,0.00021917,2]
[367256363,1750720249085,-490.0,0.00021917,2]
[367256364,1750720249095,-490.0,0.00021917,2]
[367256365,1750720249104,-490.0,0.00021917,2]
[367256366,1750720249113,-490.0,0.00021917,2]
[367256367,1750720249122,-610.23,0.00021917,2]
[367256368,1750720249132,-490.0,0.00021917,2]
[367256369,1750720249142,-490.0,0.00021917,2]
[367256370,1750720249151,-490.0,0.00021917,2]
[367256371,1750720249160,-1540.72,0.00021917,2]
[367256372,1750720249170,-490.0,0.00021917,2]
[367256373,1750720249179,-496.06591364,0.00021917,2]
[367256374,1750720249189,-490.0,0.00021917,2]
[367256375,1750720249198,-490.0,0.00021917,2]
[367256376,1750720249208,-956.42,0.00021917,2]
[367256377,1750720249218,-490.0,0.00021917,2]
[367256378,1750720249228,-490.0,0.00021917,2]
[367256379,1750720249238,-490.0,0.00021917,2]
[367256380,1750720249248,-755.88,0.00021917,2]
[367256381,1750720249257,-250.44834283,0.00021917,2]
[367256382,1750720249267,-490.0,0.00021917,2]
[367256383,1750720249276,-504.55512926,0.00021917,2]
[367256384,1750720249285,-490.0,0.00021917,2]
[367256385,1750720249295,-490.0,0.00021917,2]
[367256386,1750720249304,-326.16253722,0.00021917,2]
[367256387,1750720249313,-490.0,0.00021917,2]
[367256388,1750720249323,-490.0,0.00021917,2]
[367256389,1750720249331,-510.44,0.00021917,2]
[367256390,1750720249340,-490.0,0.00021917,2]
[367256391,1750720249349,-490.0,0.00021917,2]
[367256392,1750720249359,-490.0,0.00021917,2]
[367256393,1750720249368,-643.85,0.00021917,2]
[367256394,1750720249377,-500.0,0.00021917,2]
[367256395,1750720249387,-599.74,0.00021917,2]
[367256396,1750720249397,-490.0,0.00021917,2]
[367256397,1750720249406,-490.0,0.00021917,2]
[367256398,1750720249415,-710.51,0.00021917,2]
[367256399,1750720249425,-490.0,0.00021917,2]
[367256400,1750720249434,-490.0,0.00021917,2]
[367256401,1750720249443,-490.0,0.00021917,2]
[367256402,1750720249452,-490.0,0.00021917,2]
[367256403,1750720249461,-490.0,0.00021917,2]
[367256404,1750720249471,-490.0,0.00021917,2]
[367256405,1750720249480,-749.42,0.00021917,2]
[367256406,1750720249489,-490.0,0.00021917,2]
[367256407,1750720249499,-490.0,0.00021917,2]
[367256408,1750720249508,-490.0,0.00021917,2]
[367256409,1750720249517,-917.23,0.00021917,2]
[367256410,1750720249526,-490.0,0.00021917,2]
[367256411,1750720249535,-599.32,0.00021917,2]
[367256412,1750720249545,-490.0,0.00021917,2]
[367256413,1750720249555,-490.0,0.00021917,2]
[367256414,1750720249563,-490.0,0.00021917,2]
[367256415,1750720249572,-490.0,0.00021917,2]
[367256416,1750720249581,-720.89,0.00021917,2]
[367256417,1750720249591,-491.39080618,0.00021917,2]
[367256418,1750720249600,-490.0,0.00021917,2]
[367256419,1750720249609,-664.28,0.00021917,2]
[367256420,1750720249618,-490.0,0.00021917,2]
[367256421,1750720249627,-315.98761098,0.00021917,2]
[367256422,1750720249638,-1380.1,0.00021917,2]
[367256423,1750720249647,-196.5123912,0.00021917,2]
[367256424,1750720249656,-490.0,0.00021917,2]
[367256425,1750720249665,-494.18801911,0.00021917,2]
[367256426,1750720249675,-912.94,0.00021917,2]
[367256427,1750720249684,-490.0,0.00021917,2]
[367256428,1750720249693,-490.0,0.00021917,2]
[367256429,1750720249702,-490.0,0.00021917,2]
[367256430,1750720249711,-490.0,0.00021917,2]
[367256431,1750720249721,-490.0,0.00021917,2]
[367256432,1750720249730,-490.0,0.00021917,2]
[367256433,1750720249739,-490.0,0.00021917,2]
[367256434,1750720249748,-490.0,0.00021917,2]
[367256435,1750720249758,-583.16,0.00021917,2]
[367256436,1750720249767,-490.0,0.00021917,2]
[367256437,1750720249775,-1214.44,0.00021917,2]
[367256438,1750720249785,-490.0,0.00021917,2]
[367256439,1750720249794,-490.0,0.00021917,2]
[367256440,1750720249803,-490.0,0.00021917,2]
[367256441,1750720249813,-1030.72,0.00021917,2]
[367256442,1750720249822,-602.99,0.00021917,2]
[367256443,1750720249831,-490.0,0.00021917,2]
[367256444,1750720249840,-495.61455365,0.00021917,2]
[367256445,1750720249850,-490.0,0.00021917,2]
[367256446,1750720249859,-261.78383269,0.00021917,2]
[367256447,1750720249868,-490.0,0.00021917,2]
[367256448,1750720249877,-490.0,0.00021917,2]
[367256449,1750720249889,-490.0,0.00021917,2]
[367256450,1750720249898,-490.0,0.00021917,2]
[367256451,1750720249908,-592.75,0.00021917,2]
[367256452,1750720249917,-917.93,0.00021917,2]
[367256453,1750720249927,-490.0,0.00021917,2]
[367256454,1750720249939,-185.99969673,0.00021917,2]
[367256455,1750720249948,-490.0,0.00021917,2]
[367256456,1750720249957,-940.21,0.00021917,2]
[367256457,1750720249966,-490.0,0.00021917,2]
[367256458,1750720249976,-490.0,0.00021917,2]
[367256459,1750720249985,-490.0,0.00021917,2]
[367256460,1750720249995,-490.0,0.00021917,2]
[367256461,1750720250004,-1267.09,0.00021917,2]
[367256462,1750720250013,-490.0,0.00021917,2]
[367256463,1750720250023,-490.0,0.00021917,2]
[367256464,1750720250032,-761.58,0.00021917,2]
[367256465,1750720250041,-490.0,0.00021917,2]
[367256466,1750720250050,-490.0,0.00021917,2]
[367256467,1750720250059,-490.0,0.00021917,2]
[367256468,1750720250069,-490.0,0.00021917,2]
[367256469,1750720250079,-1017.08,0.00021917,2]
[367256470,1750720250088,-613.73,0.00021917,2]
[367256471,1750720250098,-540.2023824,0.00021917,2]
[367256472,1750720250108,-490.0,0.00021917,2]
[367256473,1750720250119,-694.19,0.00021917,2]
[367256474,1750720250128,-490.0,0.00021917,2]
[367256475,1750720250139,-490.0,0.00021917,2]
[367256476,1750720250149,-1000.0,0.00021917,2]
[367256477,1750720250158,-490.0,0.00021917,2]
[367256478,1750720250168,-897.84,0.00021917,2]
[367256479,1750720250178,-151.0,0.00021917,2]
[367256480,1750720250188,-490.0,0.00021917,2]
[367256481,1750720250198,-490.0,0.00021917,2]
[367256482,1750720250207,-982.43,0.00021917,2]
[367256483,1750720250218,-490.0,0.00021917,2]
[367256484,1750720250227,-151.0,0.00021917,2]
[367256485,1750720250238,-490.0,0.00021917,2]
[367256486,1750720250247,-760.55,0.00021917,2]
[367256487,1750720250257,-490.0,0.00021917,2]
[367256488,1750720250268,-1819.88,0.00021917,2]
[367256489,1750720250277,-490.0,0.00021917,2]
[367256490,1750720250287,-151.0,0.00021917,2]
[367256491,1750720250297,-490.0,0.00021917,2]
[367256492,1750720250306,-490.0,0.00021917,2]
[367256493,1750720250315,-669.64,0.00021917,2]
[367256494,1750720250324,-490.0,0.00021917,2]
[367256495,1750720250334,-490.0,0.00021917,2]
[367256496,1750720250344,-490.0,0.00021917,2]
[367256497,1750720250353,-490.0,0.00021917,2]
[367256498,1750720250362,-490.0,0.00021917,2]
[367256499,1750720250371,-490.0,0.00021917,2]
[367256500,1750720250381,-490.0,0.00021917,2]
[367256501,1750720250390,-490.0,0.00021917,2]
[367256502,1750720250399,-644.61,0.00021917,2]
[367256503,1750720250408,-490.0,0.00021917,2]
[367256504,1750720250417,-490.0,0.00021917,2]
[367256505,1750720250427,-490.0,0.00021917,2]
[367256506,1750720250435,-1824.55,0.00021917,2]
[367256507,1750720250445,-718.38,0.00021917,2]
[367256508,1750720250454,-490.0,0.00021917,2]
[367256509,1750720250463,-151.0,0.00021917,2]
[367256510,1750720250473,-536.46,0.00021917,2]
[367256511,1750720250482,-963.57,0.00021917,2]
[367256512,1750720250491,-490.0,0.00021917,2]
[367256513,1750720250501,-490.0,0.00021917,2]
[367256514,1750720250510,-490.0,0.00021917,2]
[367256515,1750720250520,-2293.31,0.00021917,2]
[367256516,1750720250529,-490.0,0.00021917,2]
[367256517,1750720250539,-155.406793,0.00021917,2]
[367256518,1750720250548,-1489.68,0.00021917,2]
[367256519,1750720250557,-490.0,0.00021917,2]
[367256520,1750720250566,-606.11857269,0.00021917,2]
[367256521,1750720250575,-646.41,0.00021917,2]
[367256522,1750720250585,-490.0,0.00021917,2]
[367256523,1750720250594,-203.959475,0.00021917,2]
[367256524,1750720250603,-490.0,0.00021917,2]
[367256525,1750720250613,-1394.63,0.00021917,2]
[367256526,1750720250622,-2805.91,0.00021917,2]
[367256527,1750720250632,-2616.36,0.00021917,2]
[367256528,1750720250641,-490.0,0.00021917,2]
[367256529,1750720250650,-490.0,0.00021917,2]
[367256530,1750720250660,-638.23,0.00021917,2]
[367256531,1750720250670,-490.0,0.00021917,2]
[367256532,1750720250680,-490.0,0.00021917,2]
[367256533,1750720250689,-497.04,0.00021917,2]
[367256534,1750720250699,-831.27,0.00021917,2]
[367256535,1750720250708,-769.28,0.00021917,2]
[367256536,1750720250717,-3452.29,0.00021917,2]
[367256537,1750720250727,-581.2,0.00021917,2]
[367256538,1750720250736,-9399.59,0.00021917,2]
[367256539,1750720250745,-710.04,0.00021917,2]
[367256540,1750720250754,-490.0,0.00021917,2]
[367256541,1750720250763,-490.0,0.00021917,2]
[367256542,1750720250773,-1061.59,0.00021917,2]
[367256543,1750720250784,-490.0,0.00021917,2]
[367256544,1750720250793,-151.0,0.00021917,2]
[367256545,1750720250803,-947.34,0.00021917,2]
[367256546,1750720250813,-1026.38,0.00021917,2]
[367256547,1750720250823,-490.0,0.00021917,2]
[367256548,1750720250834,-792.98,0.00021917,2]
[367256549,1750720250844,-726.73,0.00021917,2]
[367256550,1750720250854,-1802.18,0.00021917,2]
[367256551,1750720250863,-490.0,0.00021917,2]
[367256552,1750720250873,-1184.26,0.00021917,2]
[367256553,1750720250884,-490.0,0.00021917,2]
[367256554,1750720250894,-1150.8,0.00021917,2]